bitfinex/quotes_SOLUSD_20240816
["timestamp","ask_amount","ask_price","bid_price","bid_amount"]
[1723812872023,4.42523043,139.43,139.41,25.1047]
[1723812872326,4.42523043,139.45,139.42,7.1724]
[1723812872491,4.42523043,139.44,139.42,7.1724]
[1723812872691,4.42523043,139.46,139.42,7.1724]
[1723812872890,4.42523043,139.45,139.42,7.1724]
[1723812873129,4.42523043,139.46,139.42,7.1724]
[1723812873437,4.42523043,139.45,139.44,7.1715]
[1723812873601,4.42523043,139.47,139.43,25.1012]
[1723812873928,4.42523043,139.46,139.43,25.1012]
[1723812874131,4.42523043,139.47,139.44,7.1715]
[1723812874306,4.42523043,139.47,139.43,17.9293]
[1723812874307,4.42523043,139.47,139.45,7.1708]
[1723812874637,4.42523043,139.48,139.45,17.9268]
[1723812874824,4.42523043,139.5,139.45,17.9268]
[1723812874997,4.42523043,139.49,139.46,7.17]
[1723812875195,4.42523043,139.49,139.45,17.9268]
[1723812875196,34.64,139.49,139.42,17.931]
[1723812875506,41.8111,139.45,139.4,45.8024]
[1723812875712,41.8111,139.45,139.41,7.173]
[1723812875713,34.64,139.45,139.41,7.173]
[1723812876190,7.1706,139.46,139.41,7.173]
[1723812876391,7.1706,139.46,139.42,7.1724]
[1723812876392,4.4277626,139.46,139.42,7.1724]
[1723812877034,4.4277626,139.45,139.42,7.1724]
[1723812877325,41.93559,139.47,139.42,7.1724]
[1723812877631,4.67746239,139.46,139.42,7.1724]
[1723812877803,11.84796239,139.46,139.42,7.1724]
[1723812878193,4.42648239,139.45,139.42,7.1724]
[1723812879020,4.42648239,139.44,139.41,17.9321]
[1723812879711,4.42562094,139.44,139.41,17.9321]
[1723812880046,41.811,139.45,139.41,17.9321]
[1723812880200,4.55116371,139.44,139.41,17.9321]
[1723812880401,4.55116371,139.44,139.37,46.131]
[1723812880603,7.1737,139.4,139.37,46.131]
[1723812880803,0.12549,139.39,139.37,33.2575]
[1723812881034,46.36426371,139.41,139.37,33.2575]
[1723812881224,0.25098,139.4,139.37,33.2575]
[1723812881426,4.67665371,139.4,139.37,33.2575]
[1723812881807,4.42567371,139.4,139.37,40.4326]
[1723812882234,4.42567371,139.4,139.37,33.2575]
[1723812882443,4.42567371,139.4,139.37,40.4326]
[1723812882608,4.42567371,139.42,139.38,7.1745]
[1723812882946,41.8121,139.43,139.4,7.1736]
[1723812882947,4.42567371,139.43,139.4,7.1736]
[1723812883108,34.64,139.44,139.39,17.9347]
[1723812883437,31.59777371,139.43,139.39,17.9347]
[1723812883646,4.42567371,139.42,139.39,17.9347]
[1723812883953,41.32180757,139.46,139.39,17.9347]
[1723812883954,11.59677371,139.45,139.4,7.1735]
[1723812884160,24.42567371,139.44,139.4,7.1735]
[1723812884334,31.59717371,139.44,139.4,7.1735]
[1723812884539,4.42567371,139.43,139.4,7.1735]
[1723812885044,27.1715,139.44,139.4,7.1735]
[1723812885277,4.42567371,139.44,139.41,7.1729]
[1723812885437,4.42567371,139.44,139.41,17.9321]
[1723812885632,4.42567371,139.47,139.41,17.9321]
[1723812885853,4.42567371,139.46,139.41,17.9321]
[1723812886164,4.42567371,139.45,139.41,17.9321]
[1723812886470,6.68180757,139.49,139.42,12.4515]
[1723812886471,4.42567371,139.47,139.42,12.4515]
[1723812886762,4.42567371,139.46,139.42,12.4515]
[1723812886945,4.42567371,139.47,139.42,12.4515]
[1723812887155,4.42567371,139.46,139.43,7.172]
[1723812887544,7.1701,139.47,139.43,7.172]
[1723812887865,4.42637253,139.46,139.43,7.172]
[1723812888561,11.59697253,139.46,139.42,12.4515]
[1723812888745,34.64,139.44,139.38,30.8254]
[1723812889064,7.1728,139.42,139.38,37.9999]
[1723812889372,11.72396253,139.43,139.38,37.9999]
[1723812889544,11.72396253,139.43,139.39,7.174]
[1723812890363,4.42637253,139.44,139.4,7.1734]
[1723812890567,0.12549,139.43,139.4,7.1734]
[1723812890766,4.42637253,139.45,139.4,17.9334]
[1723812891067,31.59737253,139.45,139.41,7.173]
[1723812891372,4.42637253,139.44,139.42,7.1722]
[1723812891583,4.42637253,139.46,139.4,17.9334]
[1723812891775,4.42637253,139.45,139.41,7.1729]
[1723812892091,4.42519668,139.45,139.41,7.1729]
[1723812892375,4.42519668,139.45,139.42,7.1723]
[1723812892587,39.06519668,139.46,139.42,7.1723]
[1723812894156,4.42519668,139.46,139.42,7.1723]
[1723812894360,4.42519668,139.46,139.43,7.172]
[1723812894562,41.8096,139.48,139.43,7.172]
[1723812894563,24.42519668,139.47,139.43,7.172]
[1723812895768,31.59656013,139.47,139.42,25.1033]
[1723812897969,7.171,139.45,139.4,7.1734]
[1723812898284,39.06626013,139.46,139.41,7.1726]
[1723812898447,46.23676013,139.46,139.41,7.1726]
[1723812898945,11.59676013,139.46,139.42,7.1724]
[1723812899150,61.81,139.47,139.42,7.1724]
[1723812899457,4.42626013,139.46,139.42,7.1724]
[1723812899675,11.59686013,139.46,139.42,7.1724]
[1723812899976,11.5961056,139.46,139.42,7.1724]
[1723812900182,4.4255056,139.46,139.42,7.1724]
[1723812900477,4.4255056,139.46,139.41,17.9322]
[1723812900478,4.4255056,139.46,139.43,7.1717]
[1723812900682,24.4255056,139.47,139.43,7.1717]
[1723812901476,31.5955056,139.47,139.43,7.1717]
[1723812901762,66.2355056,139.47,139.42,7.1724]
[1723812901955,4.5509956,139.46,139.42,7.1724]
[1723812902476,4.5509956,139.46,139.41,17.9322]
[1723812902713,55.13461264,139.52,139.43,17.9293]
[1723812902714,34.64,139.51,139.43,17.9293]
[1723812902863,37.21541264,139.52,139.44,7.1714]
[1723812902864,41.8093,139.49,139.44,7.1714]
[1723812903198,4.42702392,139.48,139.43,25.1013]
[1723812903355,7.17,139.47,139.43,17.9293]
[1723812903555,4.42702392,139.47,139.43,25.1013]
[1723812903786,11.59662392,139.48,139.43,25.1013]
[1723812904083,4.42702392,139.48,139.43,17.9293]
[1723812904588,7.29449,139.49,139.45,7.1709]
[1723812904758,11.59602392,139.49,139.45,7.1709]
[1723812904956,7.169,139.49,139.45,7.1709]
[1723812905184,11.59602392,139.49,139.45,7.1709]
[1723812905390,11.59562392,139.5,139.45,7.1709]
[1723812905598,4.42702392,139.49,139.45,7.1709]
[1723812906089,4.42702392,139.49,139.46,7.1703]
[1723812906259,41.808,139.51,139.46,7.1703]
[1723812906260,24.42702392,139.5,139.46,7.1703]
[1723812906581,24.42702392,139.5,139.47,17.9241]
[1723812906784,4.42702392,139.5,139.47,17.9241]
[1723812907018,4.42702392,139.52,139.47,17.9241]
[1723812907157,4.43175206,139.51,139.47,17.9241]
[1723812907355,4.43175206,139.52,139.48,7.1694]
[1723812907662,7.1669,139.53,139.49,7.1688]
[1723812907888,11.59865206,139.53,139.49,7.1688]
[1723812908086,34.64,139.55,139.49,7.1688]
[1723812908087,4.43175206,139.54,139.49,17.9215]
[1723812908391,4.43175206,139.55,139.51,17.9185]
[1723812908554,4.43175206,139.57,139.51,17.9185]
[1723812908758,6.98801264,139.6,139.51,17.9185]
[1723812908759,39.07175206,139.59,139.51,17.9185]
[1723812908988,7.1648,139.57,139.52,7.167]
[1723812909186,11.59655206,139.57,139.53,7.1668]
[1723812909373,34.64,139.59,139.53,7.1668]
[1723812909374,7.1644,139.58,139.54,1.432946]
[1723812909661,4.43175206,139.59,139.55,1.43257744]
[1723812909869,7.1637,139.6,139.53,17.9166]
[1723812910679,7.1623,139.62,139.57,7.1648]
[1723812911201,7.1623,139.62,139.55,17.9138]
[1723812911202,34.64,139.62,139.55,17.9138]
[1723812911490,34.64,139.6,139.55,25.0796]
[1723812911665,41.8034,139.6,139.55,25.0796]
[1723812912472,7.1634,139.6,139.55,25.0796]
[1723812912667,7.1634,139.6,139.56,7.1653]
[1723812912868,4.44045026,139.63,139.57,17.9113]
[1723812913083,34.64,139.65,139.57,17.9113]
[1723812913386,7.1617,139.64,139.59,7.1633]
[1723812913604,7.1602,139.66,139.61,7.1627]
[1723812913754,7.1608,139.65,139.6,7.1632]
[1723812913961,39.08045026,139.67,139.56,25.0784]
[1723812913962,7.1633,139.61,139.56,25.0784]
[1723812914263,41.8033,139.61,139.56,25.0784]
[1723812914466,41.8018,139.63,139.58,7.1642]
[1723812914668,20.0,139.62,139.58,7.1642]
[1723812914988,4.44045026,139.66,139.58,7.1642]
[1723812914989,34.64,139.66,139.6,7.1633]
[1723812915306,20.0,139.65,139.61,7.1624]
[1723812915879,20.0,139.65,139.6,17.9075]
[1723812915880,7.1603,139.66,139.62,7.1622]
[1723812916187,7.1592,139.68,139.63,7.1615]
[1723812916384,7.1598,139.67,139.64,1.43196052]
[1723812916587,7.1598,139.67,139.63,7.1615]
[1723812916965,7.1593,139.68,139.63,7.1615]
[1723812917368,7.159,139.69,139.64,7.1612]
[1723812917580,7.1593,139.68,139.63,7.1617]
[1723812918193,7.1593,139.68,139.62,17.905]
[1723812918194,34.64,139.68,139.62,25.0671]
[1723812918383,41.7992,139.68,139.63,7.1617]
[1723812918985,7.1598,139.67,139.63,7.1617]
[1723812919180,0.12549,139.66,139.61,43.3102]
[1723812919414,7.1613,139.64,139.61,43.3102]
[1723812919570,0.12549,139.67,139.61,61.2164]
[1723812919883,20.25098,139.67,139.61,61.2164]
[1723812920098,34.64,139.64,139.58,47.9885]
[1723812920262,20.25098,139.67,139.58,30.0782]
[1723812920263,7.1632,139.61,139.58,30.0782]
[1723812920470,34.64,139.62,139.58,30.0782]
[1723812920665,7.28769,139.63,139.58,37.2423]
[1723812920666,7.1622,139.63,139.58,37.2423]
[1723812920867,7.1618,139.63,139.59,7.1637]
[1723812921307,7.1618,139.63,139.58,55.1531]
[1723812921704,7.28779,139.62,139.58,47.9889]
[1723812921882,7.1618,139.63,139.58,55.1531]
[1723812922082,7.1623,139.62,139.58,55.1531]
[1723812922708,7.1618,139.63,139.58,55.1531]
[1723812923009,34.64,139.64,139.58,55.1531]
[1723812923010,41.8013,139.64,139.59,7.1637]
[1723812923178,27.1619,139.63,139.58,55.1531]
[1723812924212,20.0,139.63,139.59,7.1637]
[1723812924397,27.1619,139.63,139.58,55.1531]
[1723812925508,20.0,139.63,139.58,30.0782]
[1723812925707,7.1628,139.61,139.58,30.0782]
[1723812926017,20.0,139.63,139.58,30.0782]
[1723812926310,0.12549,139.62,139.58,30.0782]
[1723812927080,7.28789,139.62,139.58,30.0782]
[1723812927280,7.1635,139.6,139.55,56.0335]
[1723812927537,34.64,139.58,139.5,44.0016]
[1723812927694,7.1654,139.56,139.51,7.1675]
[1723812928015,7.1659,139.55,139.5,51.1699]
[1723812928181,34.64,139.56,139.5,44.0016]
[1723812928182,7.29229,139.54,139.5,44.0016]
[1723812928388,7.1669,139.53,139.5,44.0016]
[1723812928589,41.93199,139.54,139.5,44.0016]
[1723812928784,41.93199,139.54,139.5,30.9536]
[1723812928986,41.93199,139.54,139.5,38.122]
[1723812929588,7.29089,139.56,139.51,7.1678]
[1723812929787,7.29089,139.56,139.49,25.0902]
[1723812929788,7.1664,139.54,139.49,25.0902]
[1723812929986,7.1659,139.55,139.5,7.1684]
[1723812930805,41.93089,139.56,139.51,7.1678]
[1723812931083,0.12549,139.55,139.51,7.1678]
[1723812931594,41.93089,139.56,139.52,1.43327187]
[1723812931595,7.1654,139.56,139.52,1.43327187]
[1723812931788,6.98801264,139.66,139.52,36.19827781]
[1723812932014,6.98801264,139.66,139.57,7.1644]
[1723812932015,52.5422,139.65,139.57,7.1644]
[1723812932315,7.1637,139.6,139.55,25.0793]
[1723812932481,7.1629,139.61,139.55,17.9139]
[1723812933428,7.1623,139.62,139.57,7.1647]
[1723812933632,7.1623,139.62,139.55,17.9139]
[1723812933918,7.1623,139.62,139.57,7.1644]
[1723812934825,34.64,139.64,139.57,7.1644]
[1723812934826,34.64,139.64,139.57,48.4393]
[1723812934987,7.1607,139.65,139.6,7.1628]
[1723812935383,7.1607,139.65,139.61,7.1627]
[1723812935683,7.1603,139.66,139.61,7.1627]
[1723812936093,7.1598,139.67,139.62,7.1621]
[1723812936497,7.1608,139.65,139.61,17.906]
[1723812936707,7.1608,139.65,139.61,25.0687]
[1723812936898,34.64,139.68,139.6,7.1632]
[1723812937111,61.2726,139.71,139.58,0.12549]
[1723812937112,7.1613,139.64,139.58,17.9103]
[1723812937626,7.1608,139.65,139.6,7.1632]
[1723812937787,0.12549,139.64,139.6,17.9075]
[1723812937992,0.25098,139.65,139.61,7.1627]
[1723812938417,7.41168,139.65,139.6,25.0707]
[1723812939019,0.25098,139.65,139.57,61.1605]
[1723812939206,7.1621,139.63,139.58,7.1642]
[1723812939533,0.12549,139.62,139.58,7.1642]
[1723812939885,0.12549,139.62,139.52,34.64]
[1723812939886,34.76549,139.62,139.54,12.2884]
[1723812940093,34.1588,139.6,139.54,12.2884]
[1723812940283,7.41518,139.59,139.54,12.2884]
[1723812940517,20.12549,139.61,139.55,7.1658]
[1723812940715,27.41438,139.6,139.55,7.1658]
[1723812940921,7.1652,139.57,139.54,12.2884]
[1723812941094,20.25098,139.6,139.53,30.9985]
[1723812941095,7.28979,139.58,139.53,30.9985]
[1723812941298,7.1643,139.58,139.53,38.1653]
[1723812941488,7.1639,139.59,139.54,7.1662]
[1723812941684,27.28879,139.6,139.53,48.915]
[1723812942030,20.12549,139.6,139.56,7.1653]
[1723812942230,7.1638,139.59,139.54,7.1663]
[1723812942932,20.0,139.6,139.57,7.1647]
[1723812943120,27.1629,139.61,139.56,7.1653]
[1723812943302,7.1638,139.59,139.55,17.9141]
[1723812943509,7.1638,139.59,139.55,25.0799]
[1723812943712,61.0843,139.64,139.56,7.1653]
[1723812944024,20.0,139.63,139.57,7.1648]
[1723812944333,0.25098,139.62,139.57,7.1648]
[1723812944621,20.0,139.63,139.57,12.2258]
[1723812944794,43.18,139.66,139.57,12.2258]
[1723812944995,7.1623,139.62,139.57,30.1373]
[1723812946005,7.1623,139.62,139.57,37.3017]
[1723812946306,0.12549,139.61,139.57,37.3017]
[1723812946507,7.1617,139.63,139.58,7.1642]
[1723812946710,43.18,139.66,139.57,30.1373]
[1723812946914,47.63524854,139.66,139.57,30.1373]
[1723812947134,7.1613,139.64,139.59,7.1634]
[1723812948523,7.1621,139.63,139.57,30.1373]
[1723812948818,7.1621,139.63,139.58,7.1639]
[1723812949024,7.1623,139.62,139.58,7.1639]
[1723812949929,0.12549,139.61,139.57,37.302]
[1723812950520,4.45569369,139.63,139.57,30.1373]
[1723812950722,0.25098,139.62,139.57,30.1373]
[1723812950931,7.1628,139.61,139.57,37.3021]
[1723812951229,7.28779,139.62,139.57,37.3021]
[1723812951413,0.12549,139.61,139.57,37.3021]
[1723812953507,0.12549,139.61,139.58,7.1642]
[1723812953821,0.12549,139.61,139.57,37.302]
[1723812954028,7.28829,139.61,139.57,30.1373]
[1723812955161,7.28829,139.61,139.54,29.9807]
[1723812955162,7.1638,139.59,139.54,29.9807]
[1723812955441,7.41548,139.58,139.54,29.9807]
[1723812955611,7.41548,139.58,139.5,63.1997]
[1723812955612,7.1659,139.55,139.5,63.1997]
[1723812956126,11.74368789,139.56,139.51,7.1678]
[1723812956312,0.12549,139.55,139.51,7.1678]
[1723812957432,0.12549,139.55,139.5,63.1997]
[1723812957433,7.1669,139.53,139.5,45.2797]
[1723812957731,7.1669,139.53,139.48,7.1691]
[1723812957926,0.12549,139.52,139.48,7.1691]
[1723812958731,4.57828789,139.54,139.5,7.1684]
[1723812958905,4.45279789,139.54,139.5,7.1684]
[1723812959104,7.166,139.55,139.5,7.1684]
[1723812959537,7.41738,139.54,139.5,7.1684]
[1723812959831,7.167,139.53,139.49,17.9217]
[1723812960024,7.41738,139.54,139.49,17.9217]
[1723812960211,0.25098,139.54,139.5,7.1683]
[1723812960412,0.25098,139.54,139.49,17.9217]
[1723812960627,0.12549,139.53,139.46,62.7821]
[1723812960819,7.167,139.53,139.48,7.1694]
[1723812961023,0.12549,139.52,139.48,7.1694]
[1723812961417,0.12549,139.52,139.49,7.1687]
[1723812961929,0.25098,139.52,139.48,7.1693]
[1723812962135,0.25098,139.52,139.47,7.1699]
[1723812962847,7.168,139.51,139.46,69.9525]
[1723812963012,0.12549,139.5,139.46,69.9525]
[1723812963430,0.12549,139.5,139.47,7.1699]
[1723812963815,4.57495624,139.52,139.47,7.1699]
[1723812964140,0.12549,139.51,139.48,7.1694]
[1723812964436,24.44946624,139.54,139.46,44.8564]
[1723812964641,0.12549,139.53,139.5,7.1684]
[1723812964936,0.25098,139.53,139.5,7.1684]
[1723812965112,0.25098,139.53,139.49,7.1688]
[1723812966302,4.45233282,139.54,139.5,17.9202]
[1723812966549,7.1654,139.56,139.5,17.9202]
[1723812967637,0.12549,139.55,139.5,17.9202]
[1723812968143,0.12549,139.55,139.51,7.1679]
[1723812968309,0.25098,139.55,139.51,7.1679]
[1723812968512,7.41688,139.55,139.5,17.9202]
[1723812968707,34.58,139.53,139.47,17.9244]
[1723812968912,0.12549,139.52,139.47,17.9244]
[1723812969139,0.25098,139.52,139.47,17.9244]
[1723812969805,0.25098,139.52,139.48,7.1694]
[1723812970226,7.41838,139.52,139.48,7.1694]
[1723812971220,0.25098,139.52,139.48,7.1694]
[1723812971429,39.03791934,139.57,139.5,17.9206]
[1723812971741,4.45791934,139.59,139.51,7.1678]
[1723812972037,34.58,139.58,139.51,7.1678]
[1723812972260,52.59251934,139.61,139.47,17.9244]
[1723812972261,7.1669,139.53,139.47,17.9244]
[1723812972413,34.58,139.56,139.47,17.9244]
[1723812972414,7.1665,139.54,139.47,17.9244]
[1723812973043,7.1665,139.54,139.49,7.1684]
[1723812973222,0.12549,139.55,139.5,7.1682]
[1723812973223,7.29139,139.55,139.5,7.1682]
[1723812973541,0.12549,139.54,139.51,7.1679]
[1723812973908,7.29209,139.54,139.49,25.0903]
[1723812974315,7.29209,139.54,139.5,7.1684]
[1723812974563,0.12549,139.54,139.5,7.1684]
[1723812975855,7.29189,139.54,139.49,25.0904]
[1723812976137,0.12549,139.53,139.49,7.1688]
[1723812976340,7.29229,139.54,139.5,7.1682]
[1723812976341,0.12549,139.54,139.5,7.1682]
[1723812977910,4.46153152,139.57,139.53,7.1666]
[1723812978064,7.1647,139.58,139.53,7.1666]
[1723812980158,0.12549,139.57,139.52,31.3014]
[1723812980373,34.70549,139.56,139.48,30.1284]
[1723812980523,0.25098,139.55,139.48,30.1284]
[1723812981452,7.167,139.53,139.48,37.2977]
[1723812981869,34.70549,139.54,139.48,30.1284]
[1723812982162,0.37647,139.53,139.47,7.1698]
[1723812982343,7.1675,139.52,139.47,7.1698]
[1723812982541,7.41798,139.53,139.48,11.1692]
[1723812982740,0.25098,139.53,139.49,7.1688]
[1723812983335,0.12549,139.53,139.49,7.1688]
[1723812983839,7.29239,139.53,139.48,11.1694]
[1723812984041,0.12549,139.52,139.48,11.1694]
[1723812984553,7.29239,139.53,139.48,11.1694]
[1723812985833,0.12549,139.52,139.48,11.1694]
[1723812986734,7.29299,139.52,139.48,11.1694]
[1723812986941,7.29299,139.52,139.48,4.0]
[1723812987560,7.29299,139.52,139.48,11.1694]
[1723812987762,7.168,139.51,139.48,4.0]
[1723812988071,0.12549,139.5,139.48,4.0]
[1723812988777,0.12549,139.51,139.47,7.1699]
[1723812989361,7.29339,139.51,139.46,25.0962]
[1723812989557,7.29389,139.5,139.45,7.1709]
[1723812989870,7.41998,139.49,139.44,39.1528]
[1723812990201,0.12549,139.49,139.45,7.1709]
[1723812990341,0.25098,139.49,139.45,7.1709]
[1723812990868,0.12549,139.49,139.45,7.1709]
[1723812991161,7.1685,139.5,139.45,7.1709]
[1723812992168,4.58914191,139.51,139.45,17.9267]
[1723812992352,7.167,139.53,139.45,17.9267]
[1723812993045,7.167,139.53,139.48,7.1694]
[1723812993241,7.1664,139.54,139.49,7.1687]
[1723812993940,4.46362345,139.55,139.49,17.9214]
[1723812994173,4.46362345,139.57,139.51,32.7256]
[1723812994371,12.2091,139.61,139.53,17.9164]
[1723812994372,4.46362345,139.6,139.53,17.9164]
[1723812994555,4.46362345,139.61,139.57,7.1646]
[1723812994754,7.1623,139.62,139.57,7.1646]
[1723812996347,4.46362345,139.64,139.56,17.913]
[1723812996348,7.1632,139.61,139.56,17.913]
[1723812996568,47.69362345,139.63,139.56,17.913]
[1723812996771,7.1638,139.59,139.54,7.1663]
[1723812997276,11.75251345,139.6,139.55,7.1658]
[1723812997448,7.28889,139.6,139.55,7.1658]
[1723812997649,11.75854508,139.6,139.55,7.1658]
[1723812998178,0.12549,139.59,139.53,25.0838]
[1723812998348,0.37647,139.59,139.53,25.0838]
[1723812998667,0.12549,139.58,139.54,7.1663]
[1723812998885,0.12549,139.58,139.53,17.917]
[1723812998886,7.28979,139.58,139.53,25.0838]
[1723812999977,43.35549,139.57,139.5,17.9211]
[1723813000268,0.12549,139.56,139.5,17.9211]
[1723813000441,7.28989,139.58,139.53,7.1668]
[1723813000642,7.29029,139.57,139.52,7.1673]
[1723813000884,0.12549,139.57,139.5,17.9211]
[1723813001172,0.25098,139.57,139.5,17.9211]
[1723813001339,7.41618,139.57,139.52,7.1673]
[1723813001751,7.1654,139.56,139.52,7.1673]
[1723813002167,7.41588,139.57,139.52,7.1673]
[1723813002365,7.1642,139.59,139.52,17.9176]
[1723813002572,2.89288479,139.61,139.52,17.9176]
[1723813002774,7.1643,139.59,139.54,7.1663]
[1723813003164,7.1634,139.6,139.55,7.1656]
[1723813003344,7.1634,139.6,139.52,17.9176]
[1723813003345,7.1638,139.59,139.54,7.1663]
[1723813003549,7.1645,139.58,139.53,7.1665]
[1723813004377,43.23,139.59,139.49,30.6457]
[1723813004541,0.25098,139.58,139.51,7.1679]
[1723813004749,43.35549,139.57,139.49,37.8144]
[1723813005054,7.1673,139.53,139.49,17.9222]
[1723813005466,7.1664,139.54,139.49,25.0911]
[1723813005980,7.1675,139.52,139.48,32.4506]
[1723813006476,43.23,139.58,139.48,50.3735]
[1723813006675,20.0,139.57,139.48,50.3735]
[1723813007174,7.1639,139.59,139.54,7.1659]
[1723813007347,7.1639,139.59,139.55,7.1658]
[1723813007881,7.1639,139.59,139.54,7.1662]
[1723813008655,0.12549,139.6,139.53,7.1668]
[1723813008852,7.1644,139.58,139.53,7.1668]
[1723813009854,7.1639,139.59,139.54,7.1662]
[1723813010481,7.1644,139.58,139.54,7.1662]
[1723813010871,7.1644,139.58,139.53,7.1668]
[1723813011510,7.1639,139.59,139.54,7.1663]
[1723813012758,7.1639,139.59,139.55,7.1658]
[1723813012955,7.1607,139.65,139.6,7.1629]
[1723813013175,7.1603,139.66,139.61,7.1627]
[1723813013978,7.1603,139.66,139.62,1.43225948]
[1723813014354,7.1603,139.66,139.62,1.43223323]
[1723813014556,7.1608,139.65,139.6,25.0706]
[1723813015356,74.1699,139.69,139.6,25.0706]
[1723813015357,7.1603,139.66,139.61,7.1627]
[1723813017011,7.1603,139.66,139.62,7.1622]
[1723813017287,7.1598,139.67,139.62,7.1622]
[1723813017486,48.1209,139.72,139.6,17.9075]
[1723813017662,7.1593,139.68,139.63,7.1616]
[1723813017863,7.1597,139.67,139.62,7.1621]
[1723813018106,45.0,139.71,139.62,7.1621]
[1723813018107,7.1602,139.66,139.62,7.1621]
[1723813018602,7.1593,139.68,139.63,7.1617]
[1723813018805,7.1593,139.68,139.64,7.1611]
[1723813019119,48.1209,139.72,139.65,7.1606]
[1723813019288,7.1583,139.7,139.65,7.1606]
[1723813019483,7.1587,139.69,139.65,7.1606]
[1723813019915,7.1593,139.68,139.64,17.9023]
[1723813020369,27.1581,139.71,139.65,7.1603]
[1723813020999,43.23,139.74,139.63,13.0475]
[1723813021000,7.1562,139.74,139.66,17.8995]
[1723813021299,55.9394,139.77,139.66,17.8995]
[1723813021663,55.9394,139.77,139.67,1.42719418]
[1723813021874,30.2274,139.78,139.68,17.8967]
[1723813022184,7.1552,139.76,139.71,7.1572]
[1723813022376,7.154,139.79,139.73,7.1561]
[1723813022581,7.1543,139.78,139.73,7.1561]
[1723813022972,91.3376,139.82,139.73,7.1561]
[1723813022973,7.1536,139.79,139.73,7.1561]
[1723813023373,7.1531,139.8,139.74,7.1559]
[1723813023574,7.1531,139.8,139.75,7.1555]
[1723813024116,30.8386,139.85,139.74,17.8891]
[1723813024273,74.0686,139.85,139.74,17.8891]
[1723813024478,43.23,139.83,139.74,17.8891]
[1723813024701,7.1526,139.81,139.74,17.8891]
[1723813025899,7.152,139.82,139.76,7.155]
[1723813026078,7.152,139.82,139.74,17.8891]
[1723813026079,7.152,139.82,139.77,7.1544]
[1723813026481,74.0686,139.85,139.78,7.154]
[1723813026482,7.1516,139.83,139.78,7.154]
[1723813026688,7.1512,139.84,139.79,7.1535]
[1723813027199,7.1512,139.84,139.78,7.154]
[1723813027926,7.1512,139.84,139.79,7.1534]
[1723813028112,44.0650588,139.86,139.8,7.1526]
[1723813028284,0.8350588,139.86,139.8,7.1526]
[1723813028489,7.1506,139.85,139.79,25.037]
[1723813029089,0.12549,139.84,139.79,25.037]
[1723813029290,0.25098,139.84,139.8,7.1529]
[1723813029498,7.1525,139.82,139.77,45.6663]
[1723813029701,50.63198,139.84,139.79,7.1534]
[1723813029884,7.40198,139.84,139.79,7.1534]
[1723813031612,0.25098,139.84,139.8,7.1528]
[1723813032608,0.8350588,139.86,139.82,7.1519]
[1723813033686,0.8350588,139.86,139.83,0.69769558]
[1723813034117,0.8350588,139.86,139.83,7.84919558]
[1723813034331,0.8350588,139.86,139.83,7.1515]
[1723813035450,0.8350588,139.86,139.8,17.8817]
[1723813035652,7.9850588,139.86,139.8,17.8817]
[1723813035825,44.0650588,139.86,139.8,17.8817]
[1723813036022,50.3811,139.84,139.79,7.1535]
[1723813036326,7.1505,139.85,139.8,7.1529]
[1723813036522,0.25098,139.84,139.8,7.1529]
[1723813036731,7.40198,139.84,139.79,25.0362]
[1723813037409,0.25098,139.84,139.8,7.153]
[1723813037837,0.25098,139.84,139.79,17.8828]
[1723813038050,43.48098,139.84,139.79,7.1535]
[1723813038233,7.40208,139.84,139.79,7.1535]